[Event "Titled Tuesday Blitz November 07 Late 2023"]
[White "Powell, Paul"]
[Black "De Souza, Cristiano Gomes"]
[WhiteFideId "2005840"]
[BlackFideId "2151758"]
[WhiteElo "2084"]
[BlackElo "2250"]
[Result "0-1"]
[Round "11"]
[TimeControl "180+1"]
[Date "2023.11.07"]
[WhiteClock "0:00:00"]
[BlackClock "0:00:15"]
[Board "85"]

1. d4 {[%clk 0:03:00]}  Nf6 {[%clk 0:02:59]} 2. Nf3 {[%clk 0:03:01]}  g6 {[%clk 0:03:00]} 3. Bf4 {[%clk 0:03:01]}  Bg7 {[%clk 0:03:00]} 4. e3 {[%clk 0:03:01]}  d6 {[%clk 0:03:01]} 5. Be2 {[%clk 0:03:01]}  O-O {[%clk 0:03:01]} 6. c4 {[%clk 0:03:01]}  b6 {[%clk 0:03:02]} 7. Nc3 {[%clk 0:03:01]}  Bb7 {[%clk 0:03:02]} 8. O-O {[%clk 0:03:01]}  Nbd7 {[%clk 0:03:02]} 9. Rc1 {[%clk 0:02:58]}  Ne4 {[%clk 0:03:02]} 10. Qc2 {[%clk 0:02:51]}  Ndf6 {[%clk 0:03:02]} 11. h3 {[%clk 0:02:50]}  a5 {[%clk 0:03:01]} 12. a3 {[%clk 0:02:42]}  Nxc3 {[%clk 0:03:00]} 13. Qxc3 {[%clk 0:02:39]}  Ne4 {[%clk 0:03:01]} 14. Qc2 {[%clk 0:02:39]}  f5 {[%clk 0:02:59]} 15. d5 {[%clk 0:02:27]}  h6 {[%clk 0:02:55]} 16. Bd3 {[%clk 0:02:26]}  Nf6 {[%clk 0:02:49]} 17. Nd4 {[%clk 0:02:19]}  Bc8 {[%clk 0:02:46]} 18. Nc6 {[%clk 0:02:10]}  Qe8 {[%clk 0:02:46]} 19. e4 {[%clk 0:02:01]}  fxe4 {[%clk 0:02:40]} 20. Bxe4 {[%clk 0:02:01]}  Nxe4 {[%clk 0:02:21]} 21. Qxe4 {[%clk 0:02:00]}  e5 {[%clk 0:02:08]} 22. Bd2 {[%clk 0:01:06]}  Bf5 {[%clk 0:01:58]} 23. Qh4 {[%clk 0:00:55]}  g5 {[%clk 0:01:55]} 24. Qg3 {[%clk 0:00:53]}  Bd7 {[%clk 0:01:46]} 25. h4 {[%clk 0:00:45]}  gxh4 {[%clk 0:01:38]} 26. Qxh4 {[%clk 0:00:44]}  Bxc6 {[%clk 0:01:30]} 27. dxc6 {[%clk 0:00:30]}  Qg6 {[%clk 0:01:28]} 28. Rc3 {[%clk 0:00:29]}  Rf5 {[%clk 0:01:14]} 29. Rg3 {[%clk 0:00:26]}  Qh5 {[%clk 0:01:09]} 30. Qe7 {[%clk 0:00:19]}  Rf7 {[%clk 0:01:07]} 31. Qe6 {[%clk 0:00:19]}  Kh7 {[%clk 0:00:44]} 32. f4 {[%clk 0:00:12]}  exf4 {[%clk 0:00:36]} 33. Rxf4 {[%clk 0:00:05]}  Rxf4 {[%clk 0:00:23]} 34. Bxf4 {[%clk 0:00:04]}  Rf8 {[%clk 0:00:22]} 35. Qe4+ {[%clk 0:00:04]}  Qf5 {[%clk 0:00:20]} 36. Qe3 {[%clk 0:00:02]}  Qxf4 {[%clk 0:00:17]} 37. Qd3+ {[%clk 0:00:00]}  Qf5 {[%clk 0:00:15]} 0-1


[Site "https://www.chess.com"]

[Event "Titled Tuesday Blitz November 07 Late 2023"]
[White "Smirnov, Timofey"]
[Black "Bao, Qilin"]
[WhiteFideId "24176427"]
[BlackFideId "8605750"]
[WhiteElo "2094"]
[BlackElo "2676"]
[Result "0-1"]
[Round "11"]
[TimeControl "180+1"]
[Date "2023.11.07"]
[WhiteClock "0:00:00"]
[BlackClock "0:00:53"]
[Board "87"]

1. d4 {[%clk 0:03:00]}  c5 {[%clk 0:02:58]} 2. c3 {[%clk 0:03:00]}  g6 {[%clk 0:02:57]} 3. Bf4 {[%clk 0:02:58]}  Bg7 {[%clk 0:02:58]} 4. e3 {[%clk 0:02:58]}  b6 {[%clk 0:02:58]} 5. Nf3 {[%clk 0:02:54]}  Bb7 {[%clk 0:02:58]} 6. Be2 {[%clk 0:02:54]}  d6 {[%clk 0:02:58]} 7. h3 {[%clk 0:02:52]}  Nf6 {[%clk 0:02:58]} 8. O-O {[%clk 0:02:52]}  O-O {[%clk 0:02:57]} 9. Nbd2 {[%clk 0:02:52]}  a6 {[%clk 0:02:55]} 10. a4 {[%clk 0:02:52]}  Nbd7 {[%clk 0:02:55]} 11. Re1 {[%clk 0:02:51]}  Ra7 {[%clk 0:02:55]} 12. Bh2 {[%clk 0:02:46]}  Qa8 {[%clk 0:02:55]} 13. dxc5 {[%clk 0:02:11]}  bxc5 {[%clk 0:02:45]} 14. Nc4 {[%clk 0:02:07]}  Ne4 {[%clk 0:02:37]} 15. Na5 {[%clk 0:01:55]}  Bd5 {[%clk 0:02:24]} 16. c4 {[%clk 0:01:40]}  Be6 {[%clk 0:02:24]} 17. Rb1 {[%clk 0:01:28]}  Rb8 {[%clk 0:01:59]} 18. b3 {[%clk 0:01:21]}  Nc3 {[%clk 0:01:57]} 19. Qc2 {[%clk 0:01:18]}  Nxb1 {[%clk 0:01:48]} 20. Rxb1 {[%clk 0:01:19]}  Bf5 {[%clk 0:01:43]} 21. Bd3 {[%clk 0:01:16]}  Bxd3 {[%clk 0:01:44]} 22. Qxd3 {[%clk 0:01:17]}  Rc7 {[%clk 0:01:41]} 23. Nd2 {[%clk 0:00:57]}  Qa7 {[%clk 0:01:38]} 24. Qe4 {[%clk 0:00:22]}  Qb6 {[%clk 0:01:37]} 25. b4 {[%clk 0:00:20]}  cxb4 {[%clk 0:01:32]} 26. Nab3 {[%clk 0:00:18]}  Nc5 {[%clk 0:01:28]} 27. Qd5 {[%clk 0:00:10]}  a5 {[%clk 0:01:21]} 28. g4 {[%clk 0:00:06]}  Rbc8 {[%clk 0:01:19]} 29. Rc1 {[%clk 0:00:05]}  Nxa4 {[%clk 0:01:11]} 30. c5 {[%clk 0:00:02]}  Nxc5 {[%clk 0:01:02]} 31. Nc4 {[%clk 0:00:02]}  Qb7 {[%clk 0:00:53]} 32. Nbxa5 {[%clk 0:00:00]}  Qxd5 {[%clk 0:00:53]} 0-1


[Site "https://www.chess.com"]

[Event "Titled Tuesday Blitz November 07 Late 2023"]
[White "Broca Jimenez, Fernando"]
[Black "Burke, Paul"]
[WhiteFideId "5104742"]
[BlackFideId "2605767"]
[WhiteElo "2211"]
[BlackElo "1884"]
[Result "1-0"]
[Round "11"]
[TimeControl "180+1"]
[Date "2023.11.07"]
[WhiteClock "0:00:18"]
[BlackClock "0:01:00"]
[Board "88"]

1. e4 {[%clk 0:03:00]}  e5 {[%clk 0:02:59]} 2. Nf3 {[%clk 0:02:58]}  Nc6 {[%clk 0:02:58]} 3. Bb5 {[%clk 0:02:58]}  f5 {[%clk 0:02:58]} 4. d3 {[%clk 0:02:57]}  Nf6 {[%clk 0:02:57]} 5. O-O {[%clk 0:02:54]}  Be7 {[%clk 0:02:57]} 6. Bc4 {[%clk 0:02:52]}  d6 {[%clk 0:02:54]} 7. Nc3 {[%clk 0:02:50]}  Na5 {[%clk 0:02:54]} 8. exf5 {[%clk 0:02:47]}  Nxc4 {[%clk 0:02:54]} 9. dxc4 {[%clk 0:02:46]}  O-O {[%clk 0:02:54]} 10. Bg5 {[%clk 0:02:46]}  Bxf5 {[%clk 0:02:52]} 11. Qd2 {[%clk 0:02:44]}  Ne4 {[%clk 0:02:42]} 12. Nxe4 {[%clk 0:02:34]}  Bxe4 {[%clk 0:02:40]} 13. Bxe7 {[%clk 0:02:26]}  Qxe7 {[%clk 0:02:39]} 14. Ng5 {[%clk 0:02:16]}  Bf5 {[%clk 0:02:10]} 15. f3 {[%clk 0:02:10]}  h6 {[%clk 0:02:08]} 16. Ne4 {[%clk 0:02:10]}  Bxe4 {[%clk 0:01:58]} 17. fxe4 {[%clk 0:02:11]}  Qe6 {[%clk 0:01:58]} 18. Qd5 {[%clk 0:02:07]}  Qxd5 {[%clk 0:01:58]} 19. cxd5 {[%clk 0:02:01]}  Rxf1+ {[%clk 0:01:58]} 20. Rxf1 {[%clk 0:02:00]}  Rf8 {[%clk 0:01:57]} 21. Rxf8+ {[%clk 0:01:47]}  Kxf8 {[%clk 0:01:57]} 22. g4 {[%clk 0:01:42]}  Kf7 {[%clk 0:01:56]} 23. h4 {[%clk 0:01:41]}  Kf6 {[%clk 0:01:54]} 24. Kf2 {[%clk 0:01:39]}  g6 {[%clk 0:01:54]} 25. c4 {[%clk 0:01:35]}  Ke7 {[%clk 0:01:52]} 26. b4 {[%clk 0:01:34]}  Kd7 {[%clk 0:01:51]} 27. Ke3 {[%clk 0:01:32]}  Kd8 {[%clk 0:01:51]} 28. Kd3 {[%clk 0:01:32]}  Kd7 {[%clk 0:01:51]} 29. c5 {[%clk 0:01:27]}  Kd8 {[%clk 0:01:48]} 30. Kc4 {[%clk 0:01:27]}  Kd7 {[%clk 0:01:48]} 31. a4 {[%clk 0:01:12]}  Kd8 {[%clk 0:01:48]} 32. a5 {[%clk 0:01:04]}  Kd7 {[%clk 0:01:48]} 33. Kb5 {[%clk 0:00:37]}  Kd8 {[%clk 0:01:44]} 34. c6 {[%clk 0:00:30]}  b6 {[%clk 0:01:39]} 35. axb6 {[%clk 0:00:28]}  axb6 {[%clk 0:01:31]} 36. Ka6 {[%clk 0:00:28]}  Kc8 {[%clk 0:01:23]} 37. Ka7 {[%clk 0:00:25]}  g5 {[%clk 0:01:15]} 38. h5 {[%clk 0:00:18]}  b5 {[%clk 0:01:07]} 39. Ka8 {[%clk 0:00:17]}  Kd8 {[%clk 0:01:00]} 40. Kb8 {[%clk 0:00:18]} 1-0


[Site "https://www.chess.com"]

[Event "Titled Tuesday Blitz November 07 Late 2023"]
[White "Bongo Akanga Ndjila, Barthelemy"]
[Black "Mirza, Diana"]
[WhiteFideId "10609431"]
[BlackFideId "2503999"]
[WhiteElo "2007"]
[BlackElo "1986"]
[Result "1-0"]
[Round "11"]
[TimeControl "180+1"]
[Date "2023.11.08"]
[WhiteClock "0:01:22"]
[BlackClock "0:01:46"]
[Board "89"]

1. d4 {[%clk 0:02:16]}  Nf6 {[%clk 0:02:57]} 2. c4 {[%clk 0:02:14]}  g6 {[%clk 0:02:58]} 3. Nc3 {[%clk 0:02:02]}  Bg7 {[%clk 0:02:58]} 4. e4 {[%clk 0:02:02]}  d6 {[%clk 0:02:59]} 5. Be2 {[%clk 0:02:03]}  O-O {[%clk 0:02:59]} 6. Nf3 {[%clk 0:02:03]}  c5 {[%clk 0:03:00]} 7. O-O {[%clk 0:02:02]}  cxd4 {[%clk 0:03:00]} 8. Nxd4 {[%clk 0:02:01]}  Nc6 {[%clk 0:03:01]} 9. Nc2 {[%clk 0:02:02]}  Be6 {[%clk 0:02:59]} 10. Kh1 {[%clk 0:02:01]}  Rc8 {[%clk 0:02:59]} 11. f3 {[%clk 0:02:02]}  Ne5 {[%clk 0:02:55]} 12. b3 {[%clk 0:01:59]}  Nxf3 {[%clk 0:02:42]} 13. Rxf3 {[%clk 0:01:44]}  Nxe4 {[%clk 0:02:35]} 14. Nxe4 {[%clk 0:01:43]}  Bxa1 {[%clk 0:02:36]} 15. Nxa1 {[%clk 0:01:42]}  f5 {[%clk 0:02:33]} 16. Ng5 {[%clk 0:01:40]}  Qd7 {[%clk 0:02:27]} 17. Re3 {[%clk 0:01:36]}  Bf7 {[%clk 0:02:23]} 18. Bb2 {[%clk 0:01:33]}  h6 {[%clk 0:02:12]} 19. Qd4 {[%clk 0:01:25]}  e5 {[%clk 0:02:08]} 20. Rxe5 {[%clk 0:01:25]}  hxg5 {[%clk 0:01:46]} 21. Re7 {[%clk 0:01:22]} 1-0


[Site "https://www.chess.com"]